bitfinex-derivatives/quotes_BTCF0:USTF0_20251216
["timestamp","ask_amount","ask_price","bid_price","bid_amount"]
[1765871175693,0.1259652,85965.0,85964.0,0.11412456]
[1765871176887,0.26236769,85974.0,85964.0,0.11412456]
[1765871176888,0.4847139,85974.0,85973.0,0.11395]
[1765871177689,0.1236047,85968.0,85967.0,0.14575]
[1765871178784,0.05582,85968.0,85967.0,0.14575]
[1765871178991,0.11135,85968.0,85967.0,0.14575]
[1765871179191,0.11235,85968.0,85967.0,0.14575]
[1765871179593,0.11235,85968.0,85964.0,0.00017456]
[1765871179594,0.11073,85965.0,85964.0,0.00017456]
[1765871179794,0.47153,85965.0,85964.0,0.00017456]
[1765871180390,0.1212868,85953.0,85952.0,0.11395]
[1765871180692,0.4820868,85953.0,85952.0,0.11395]
[1765871182292,0.4820868,85953.0,85952.0,0.11595]
[1765871183192,0.1212868,85953.0,85952.0,0.1255869]
[1765871183400,0.1222868,85953.0,85952.0,0.1265869]
[1765871183792,0.1222868,85953.0,85952.0,0.11495]
[1765871184687,0.1222868,85953.0,85952.0,0.11395]
[1765871184887,0.1222868,85953.0,85952.0,0.11495]
[1765871185785,0.001,85953.0,85952.0,0.1265869]
[1765871186188,0.3608,85958.0,85957.0,0.1255862]
[1765871186390,0.00017456,85961.0,85960.0,0.1573858]
[1765871188887,0.00117456,85961.0,85960.0,0.1573858]
[1765871189296,0.0116345,85970.0,85969.0,0.1255846]
[1765871190294,0.3608,85974.0,85973.0,0.11395]
[1765871190499,0.00250075,85978.0,85977.0,0.1255835]
[1765871190993,0.00250075,85978.0,85977.0,0.11395]
[1765871191698,0.00450075,85978.0,85977.0,0.11395]
[1765871192501,0.00750075,85978.0,85977.0,0.11395]
[1765871195101,0.00750075,85978.0,85977.0,0.47475]
[1765871195403,0.00750075,85978.0,85977.0,0.11395]
[1765871195799,0.09892075,85978.0,85977.0,0.11395]
[1765871196711,0.00750075,85978.0,85977.0,0.11395]
[1765871196896,0.00750075,85978.0,85977.0,0.47475]
[1765871197400,0.3608,85988.0,85987.0,0.10282]
[1765871197797,0.3608,85988.0,85987.0,0.1144522]
[1765871198305,0.41146,85988.0,85987.0,0.1144522]
[1765871198603,0.05466,85988.0,85987.0,0.1154522]
[1765871198906,0.05766,85988.0,85987.0,0.1154522]
[1765871200198,0.007,85988.0,85987.0,0.1154522]
[1765871202499,0.05703,85988.0,85987.0,0.1154522]
[1765871202711,0.10643,85988.0,85987.0,0.1154522]
[1765871206502,0.10643,85988.0,85987.0,0.10382]
[1765871207209,0.118062,85988.0,85987.0,0.10382]
[1765871208009,0.118062,85988.0,85987.0,0.001]
[1765871208901,0.1009135,85977.0,85976.0,0.0318]
[1765871209203,0.0559535,85977.0,85976.0,0.13462]
[1765871209601,0.1009135,85977.0,85976.0,0.13462]
[1765871210011,0.04432,85977.0,85976.0,0.13462]
[1765871210401,0.003,85977.0,85976.0,0.13462]
[1765871211607,0.011632,85989.0,85988.0,0.13234]
[1765871211812,0.057902,85989.0,85988.0,0.13234]
[1765871212116,0.104202,85989.0,85988.0,0.13234]
[1765871213209,0.107202,85989.0,85988.0,0.13234]
[1765871213408,0.111202,85989.0,85988.0,0.13234]
[1765871213816,0.007,85989.0,85988.0,0.13234]
[1765871214114,0.007,85989.0,85988.0,0.49314]
[1765871214309,0.17862972,85998.0,85995.0,0.1439711]
[1765871214510,0.0116305,86000.0,85995.0,0.1439711]
[1765871214814,0.1041753,85996.0,85995.0,0.13234]
[1765871215014,0.0001153,85996.0,85995.0,0.13234]
[1765871215917,0.0031153,85996.0,85995.0,0.13234]
[1765871217111,0.0071153,85996.0,85995.0,0.13234]
[1765871218005,0.007,85996.0,85995.0,0.13234]
[1765871218206,0.0116299,86004.0,86003.0,0.10282]
[1765871218517,0.114121,85996.0,85995.0,0.49314]
[1765871219112,0.114121,85996.0,85995.0,1.99314]
[1765871220020,0.05294,85996.0,85995.0,1.99314]
[1765871220216,0.002,85996.0,85995.0,1.99314]
[1765871220931,0.005,85996.0,85995.0,1.99314]
[1765871221432,0.0621298,86005.0,86004.0,0.10282]
[1765871221616,0.1132298,86005.0,86004.0,0.10282]
[1765871222018,0.10136,86003.0,86002.0,0.02952]
[1765871222328,0.10136,86003.0,86002.0,0.08151]
[1765871223333,0.10336,86003.0,86002.0,0.08151]
[1765871224129,0.10636,86003.0,86002.0,0.08151]
[1765871224324,0.005,86003.0,86002.0,0.12716]
[1765871224524,0.09799,86003.0,86002.0,0.48796]
[1765871224725,0.09799,86003.0,86002.0,0.12716]
[1765871225718,0.09599,86003.0,86002.0,0.12716]
[1765871225928,0.09599,86003.0,86002.0,0.03352]
[1765871226629,0.04762,86003.0,86002.0,0.1271]
[1765871226835,0.4200487,86013.0,86012.0,0.09158]
[1765871227129,0.4654187,86013.0,86012.0,0.09158]
[1765871227734,0.45379,86013.0,86012.0,0.09158]
[1765871228336,0.45379,86013.0,86012.0,0.09258]
[1765871230335,0.45379,86013.0,86012.0,0.09458]
[1765871237029,0.45379,86013.0,86012.0,0.003]
[1765871237936,0.08508,85996.0,85989.0,1.08912]
[1765871238333,0.096711,85996.0,85995.0,0.1211]
[1765871238744,0.096711,85996.0,85995.0,0.133137]
[1765871239641,0.096711,85996.0,85995.0,0.137137]
[1765871240141,0.04254,85996.0,85995.0,0.137137]
[1765871240726,0.0951903,86001.0,86000.0,0.1032104]
[1765871241630,0.0951903,86001.0,86000.0,0.09158]
[1765871242237,0.0951903,86001.0,86000.0,0.09458]
[1765871242935,0.0951903,86001.0,86000.0,0.09558]
[1765871248444,0.0531403,86001.0,86000.0,0.09558]
[1765871248640,0.04151,86001.0,86000.0,0.09558]
[1765871248944,0.07955,86001.0,86000.0,0.09558]
[1765871249534,0.0486797,86005.0,86004.0,0.02718]
[1765871249746,0.0116297,86005.0,86004.0,0.11876]
[1765871250344,0.3608,86006.0,86005.0,0.1032097]
[1765871250543,0.08759311,86018.0,86017.0,0.09158]
[1765871251340,0.05052311,86018.0,86017.0,0.09158]
[1765871251540,0.08711311,86018.0,86017.0,0.09158]
[1765871253146,0.08711311,86018.0,86017.0,0.09258]
[1765871254046,0.07548511,86018.0,86017.0,0.09258]
[1765871254245,0.03889511,86018.0,86017.0,0.09258]
[1765871255132,0.07377511,86018.0,86017.0,0.09258]
[1765871260150,0.03889511,86018.0,86017.0,0.09258]
[1765871261853,0.07101511,86018.0,86017.0,0.09258]
[1765871262044,0.03889511,86018.0,86017.0,0.09258]
[1765871262550,0.00232511,86018.0,86017.0,0.09158]
[1765871262750,0.00232511,86018.0,86017.0,0.09758]
[1765871263343,0.00232511,86018.0,86017.0,0.19021245]
[1765871263544,0.00232511,86018.0,86017.0,0.19321245]
[1765871264057,0.03263511,86018.0,86017.0,0.19321245]
[1765871266858,0.00232511,86018.0,86017.0,0.19321245]
[1765871267155,0.03131511,86018.0,86017.0,0.19321245]
[1765871267350,0.06032511,86018.0,86017.0,0.19321245]
[1765871268258,0.06032511,86018.0,86017.0,0.18921245]
[1765871268458,0.06032511,86018.0,86017.0,0.19321245]
[1765871268861,0.06032511,86018.0,86017.0,0.18921245]
[1765871269057,0.06032511,86018.0,86017.0,0.19321245]
[1765871269258,0.06032511,86018.0,86017.0,0.19221245]
[1765871270362,0.06032511,86018.0,86017.0,0.18821245]
[1765871270563,0.06032511,86018.0,86017.0,0.19121245]
[1765871271355,0.00232511,86018.0,86017.0,0.19121245]
[1765871271761,0.41451,86034.0,86033.0,0.08242]
[1765871272057,0.4261358,86034.0,86033.0,0.08242]
[1765871273759,0.4261358,86034.0,86033.0,0.08342]
[1765871274460,0.38765,86034.0,86033.0,0.08342]
[1765871274664,0.41409,86034.0,86033.0,0.08342]
[1765871276159,0.0367952,86039.0,86038.0,0.0940453]
[1765871276362,0.02517,86039.0,86038.0,0.0940453]
[1765871276562,0.05077,86039.0,86038.0,0.0940453]
[1765871276768,0.05077,86039.0,86038.0,0.08242]
[1765871277565,0.05077,86039.0,86038.0,0.08342]
[1765871280368,0.05077,86039.0,86038.0,0.001]
[1765871285783,0.0552062,86031.0,86030.0,0.00017435]
[1765871285989,0.4160062,86031.0,86030.0,0.00017435]
[1765871287191,0.4160062,86031.0,86030.0,0.00217435]
[1765871287492,0.4160062,86031.0,86030.0,0.00317435]
[1765871288293,0.4160062,86031.0,86030.0,0.00217435]
[1765871288593,0.4160062,86031.0,86030.0,0.00317435]
[1765871290187,0.4160062,86031.0,86030.0,0.10295435]
[1765871291888,0.3936662,86031.0,86030.0,0.10295435]
[1765871292082,0.4149162,86031.0,86030.0,0.10295435]
[1765871296590,0.4149162,86031.0,86030.0,0.06435435]
[1765871296897,0.4149162,86031.0,86030.0,0.02653435]
[1765871297090,0.4149162,86031.0,86030.0,0.10295435]
[1765871297796,0.4149162,86031.0,86030.0,0.02653435]
[1765871298192,0.4149162,86031.0,86030.0,0.10295435]
[1765871298689,0.4149162,86031.0,86030.0,0.00317435]
[1765871299805,0.4149162,86031.0,86030.0,0.00217435]
[1765871300296,0.4149162,86031.0,86030.0,0.06335435]
[1765871300501,0.4149162,86031.0,86030.0,0.10195435]
[1765871300688,0.4149162,86031.0,86030.0,0.02553435]
[1765871301395,0.4149162,86031.0,86030.0,0.02453435]
[1765871301597,0.4149162,86031.0,86030.0,0.02553435]
[1765871301786,0.4149162,86031.0,86030.0,0.02453435]
[1765871301990,0.4149162,86031.0,86030.0,0.02553435]
[1765871302695,0.052361,85996.0,85995.0,0.38416]
[1765871303003,0.0522823,85986.0,85985.0,0.3608]
[1765871303195,0.0521927,85983.0,85982.0,0.07654484]
[1765871305197,0.0521927,85983.0,85982.0,0.07854484]
[1765871305395,0.0521927,85983.0,85982.0,0.08054484]
[1765871305599,0.0116327,85983.0,85982.0,0.09233207]
[1765871305997,0.38087,85990.0,85989.0,0.07642]
[1765871306198,0.00017435,85991.0,85990.0,0.07642]
[1765871307996,0.00017435,85991.0,85990.0,0.07942]
[1765871308193,0.00017435,85991.0,85990.0,0.08342]
[1765871308595,0.19009879,86000.0,85999.0,0.0880506]
[1765871308902,0.0116304,86000.0,85999.0,0.0880506]
[1765871309097,0.38073,86009.0,86008.0,0.07642]
[1765871309400,0.4123783,86016.0,86015.0,0.07642]
[1765871312405,0.3608,86016.0,86015.0,0.07942]
[1765871312805,0.0116279,86019.0,86018.0,0.07481]
[1765871313201,0.372427,86025.0,86024.0,0.07616]
[1765871313610,0.391917,86025.0,86024.0,0.07616]
[1765871313811,0.031117,86025.0,86024.0,0.07616]
[1765871314011,0.050687,86025.0,86024.0,0.07616]
[1765871314701,0.050687,86025.0,86024.0,0.07816]
[1765871314898,0.050687,86025.0,86024.0,0.07916]
[1765871315099,0.050687,86025.0,86024.0,0.07716]
[1765871315304,0.011627,86025.0,86024.0,0.07916]
[1765871315702,0.0309767,86028.0,86027.0,0.0116266]
[1765871315908,0.0309767,86028.0,86027.0,0.0877866]
[1765871316108,0.3608,86033.0,86032.0,0.07616]
[1765871316310,0.38008,86033.0,86032.0,0.07616]
[1765871316517,0.39944,86033.0,86032.0,0.07616]
[1765871317616,0.39944,86033.0,86032.0,0.07716]
[1765871319004,0.39944,86033.0,86032.0,0.04049]
[1765871320012,0.0116257,86035.0,86034.0,0.07616]
[1765871320313,0.0497243,86045.0,86044.0,0.06165]
[1765871320508,0.0497253,86038.0,86037.0,0.06165]
[1765871320714,0.0497253,86038.0,86037.0,0.09832]
[1765871320909,0.0497253,86038.0,86037.0,0.06165]
[1765871321114,0.0495857,86035.0,86034.0,0.3608]
[1765871321611,0.0495857,86035.0,86034.0,0.40029]
[1765871321811,0.0495857,86035.0,86034.0,0.43696]
[1765871322813,0.07498663,86058.0,86057.0,0.07616]
[1765871323115,0.06099,86057.0,86056.0,0.02216]
[1765871323611,0.0726138,86049.0,86048.0,0.09832]
[1765871323811,0.0726138,86049.0,86048.0,0.11004387]
[1765871324615,0.0746138,86049.0,86048.0,0.11004387]
[1765871324917,0.0746138,86049.0,86048.0,0.09832]
[1765871325510,0.0766138,86049.0,86048.0,0.09832]
[1765871327217,0.0460838,86049.0,86048.0,0.09832]
[1765871327417,0.03446,86049.0,86048.0,0.09832]
[1765871328119,0.004,86049.0,86048.0,0.09832]
[1765871328914,0.0418334,86053.0,86052.0,0.07616]
[1765871329712,0.0720634,86053.0,86052.0,0.0877834]
[1765871329915,0.0720634,86053.0,86052.0,0.07616]
[1765871330115,0.0719838,86049.0,86048.0,0.09832]
[1765871330415,0.0719347,86042.0,86041.0,0.3608]
[1765871330614,0.06031,86041.0,86031.0,0.0116262]
[1765871330813,0.06031,86041.0,86038.0,0.01182924]
[1765871331009,0.0718358,86034.0,86024.0,0.38296]
[1765871331814,0.4326358,86034.0,86024.0,0.38296]
[1765871332219,0.4326358,86034.0,86024.0,0.02216]
[1765871332719,0.4326358,86034.0,86033.0,0.00217435]
[1765871333120,0.4326358,86034.0,86033.0,0.00417435]
[1765871333319,0.4326358,86034.0,86033.0,0.00217435]
[1765871333519,0.4326358,86034.0,86033.0,0.00117435]
[1765871333814,0.4326358,86034.0,86033.0,0.00317435]
[1765871335009,0.4326358,86034.0,86033.0,0.00217435]
[1765871335415,0.4326358,86034.0,86033.0,0.00117435]
[1765871338820,0.4326358,86034.0,86033.0,0.04066435]
[1765871339925,0.4326358,86034.0,86033.0,0.00117435]
[1765871340316,0.4326358,86034.0,86033.0,0.07733435]
[1765871340525,0.4322358,86034.0,86033.0,0.07733435]
[1765871341528,0.4024958,86034.0,86033.0,0.07733435]
[1765871341722,0.4321958,86034.0,86033.0,0.07733435]
[1765871352832,0.4321958,86034.0,86033.0,0.00117435]
[1765871354835,0.4321958,86034.0,86033.0,0.03688435]
[1765871355034,0.4321958,86034.0,86033.0,0.07377435]
[1765871355239,0.4321958,86034.0,86033.0,0.03688435]
[1765871356832,0.4321958,86034.0,86033.0,0.07377435]
[1765871357538,0.4321958,86034.0,86033.0,0.08540035]
[1765871357738,0.4321958,86034.0,86033.0,0.07377435]
[1765871361834,0.0713958,86034.0,86033.0,0.07377435]
[1765871366834,0.05977,86034.0,86033.0,0.07377435]
[1765871367038,0.0116254,86037.0,86036.0,0.0842256]
[1765871367229,0.56729515,86050.0,86049.0,0.0726]
[1765871367433,0.41703,86050.0,86049.0,0.0726]
[1765871368138,0.05623,86050.0,86049.0,0.0726]
[1765871369639,0.05723,86050.0,86049.0,0.0726]
[1765871369841,0.05923,86050.0,86049.0,0.0726]
[1765871370446,0.05691,86050.0,86049.0,0.0726]
[1765871372644,0.05691,86050.0,86043.0,0.3608]
[1765871372645,0.05498,86041.0,86040.0,0.09749]
[1765871372949,0.0666049,86041.0,86040.0,0.09749]
[1765871373841,0.0666049,86041.0,86040.0,0.09849]
[1765871377447,0.0666049,86041.0,86040.0,0.19061458]
[1765871382253,0.05498,86041.0,86040.0,0.19061458]
[1765871384264,0.02743,86041.0,86040.0,0.19061458]
[1765871384648,0.05376,86041.0,86040.0,0.19061458]
[1765871385050,0.05367,86041.0,86040.0,0.19061458]
[1765871385859,0.05367,86041.0,86040.0,0.001]
[1765871386754,0.05367,86041.0,86040.0,0.09778]
[1765871390663,0.0116249,86042.0,86041.0,0.07415]
[1765871390864,0.0116236,86051.0,86050.0,0.0857737]
[1765871391070,0.05379403,86058.0,86057.0,0.07415]
[1765871391368,0.06541663,86058.0,86057.0,0.0857727]
[1765871391866,0.03967663,86058.0,86057.0,0.0857727]
[1765871392061,0.00232403,86058.0,86057.0,0.0857727]
[1765871392268,0.00232403,86058.0,86057.0,0.4465727]
[1765871392969,0.05108,86073.0,86072.0,0.02263]
[1765871393264,0.05108,86073.0,86072.0,0.09678]
[1765871394363,0.05408,86073.0,86072.0,0.09678]
[1765871394760,0.0285,86073.0,86072.0,0.10832231]
[1765871395169,0.0325,86073.0,86072.0,0.10832231]
[1765871395370,0.05793,86073.0,86072.0,0.10832231]
[1765871395669,0.05793,86073.0,86072.0,1.60832231]
[1765871395870,0.05393,86073.0,86072.0,1.60832231]
[1765871396072,0.05693,86073.0,86072.0,1.60832231]
[1765871396272,0.0315,86073.0,86072.0,1.60832231]
[1765871396969,0.006,86073.0,86072.0,1.60832231]
[1765871398267,0.3608,86078.0,86072.0,1.60832231]
[1765871398268,0.3724199,86078.0,86072.0,1.60832231]
[1765871398469,0.0116199,86078.0,86077.0,0.0116199]
[1765871398772,0.0619399,86078.0,86077.0,0.07415]
[1765871399460,0.0649399,86078.0,86077.0,0.07415]
[1765871399657,0.0618016,86065.0,86064.0,0.09695435]
[1765871399859,0.0618016,86065.0,86064.0,0.10841288]
[1765871400266,0.0618016,86065.0,86064.0,0.07196288]
[1765871400671,0.0618016,86065.0,86064.0,0.10841288]
[1765871400873,0.0628016,86065.0,86064.0,0.10841288]
[1765871401873,0.0638016,86065.0,86064.0,0.10841288]
[1765871402665,0.0638016,86065.0,86064.0,0.06050435]
[1765871402972,0.0638016,86065.0,86064.0,0.00017435]
[1765871402973,0.4246016,86065.0,86064.0,0.00017435]
[1765871403462,0.4246016,86065.0,86052.0,0.02263]
[1765871403463,0.04948,86053.0,86052.0,0.02263]
[1765871403659,0.41028,86053.0,86052.0,0.02263]
[1765871403858,0.04941,86047.0,86040.0,0.09380752]
[1765871404159,0.0610341,86047.0,86046.0,0.05914]
[1765871404360,0.0610341,86047.0,86046.0,0.07070705]
[1765871404565,0.0610341,86047.0,86046.0,0.02263]
[1765871404767,0.0609651,86039.0,86038.0,0.00017435]
[1765871405165,0.0609651,86039.0,86038.0,1.50017435]
[1765871406364,0.0609651,86039.0,86038.0,1.50317435]
[1765871406872,0.0609651,86039.0,86038.0,1.50517435]
[1765871407877,0.0609651,86039.0,86038.0,0.04168435]
[1765871408373,0.0609651,86039.0,86038.0,0.07660435]
[1765871409171,0.0609651,86039.0,86038.0,0.00517435]
[1765871409364,0.0609651,86039.0,86038.0,0.07660435]
[1765871410268,0.0609651,86039.0,86038.0,0.07360435]
[1765871410472,0.0609651,86039.0,86038.0,0.07560435]
[1765871411681,0.0609651,86039.0,86038.0,0.07360435]
[1765871411873,0.0609651,86039.0,86038.0,0.07560435]
[1765871415372,0.0609651,86039.0,86038.0,0.00417435]
[1765871415575,0.04794,86024.0,86023.0,0.09351]
[1765871415769,0.4203672,86024.0,86023.0,0.09351]
[1765871415976,0.4203672,86024.0,86023.0,0.10517822]
[1765871416679,0.3963672,86024.0,86023.0,0.10517822]
[1765871416880,0.00017435,86032.0,86031.0,0.07143]
[1765871418169,0.03567435,86032.0,86031.0,0.07143]
[1765871418376,0.04730045,86032.0,86031.0,0.07143]
[1765871418571,0.04730045,86032.0,86031.0,0.07443]
[1765871418875,0.00017435,86032.0,86031.0,0.07443]
[1765871419081,0.3608,86052.0,86042.0,0.07143]
[1765871419275,0.3724246,86043.0,86042.0,0.0830547]
[1765871420078,0.3608,86043.0,86042.0,0.0830547]
[1765871420268,0.01179751,86051.0,86050.0,0.07143]
[1765871420464,0.00017401,86051.0,86050.0,0.07143]
[1765871420673,0.0116227,86058.0,86057.0,0.07143]
[1765871420878,0.0116227,86058.0,86057.0,0.17499176]
[1765871421079,0.0116227,86058.0,86057.0,0.0830527]
[1765871422080,0.001,86058.0,86057.0,0.0830527]
[1765871425080,0.3608,86064.0,86063.0,0.0830519]
[1765871425883,0.3608,86064.0,86063.0,0.8107319]
[1765871426782,0.4429797,86079.0,86078.0,0.07143]
[1765871427887,0.4459797,86079.0,86078.0,0.07143]
[1765871428181,0.4489797,86079.0,86078.0,0.07143]
[1765871428882,0.07036,86073.0,86072.0,0.02208]
[1765871429684,0.07036,86073.0,86072.0,0.05859]
[1765871429981,0.07036,86073.0,86072.0,0.02208]
[1765871430181,0.0818615,86066.0,86065.0,0.02208]
[1765871430386,0.0818615,86066.0,86058.0,0.09351]
[1765871430387,0.0818624,86059.0,86058.0,0.09351]
[1765871430582,0.0818624,86059.0,86058.0,0.10536794]
[1765871431290,0.0702,86059.0,86058.0,0.10536794]
[1765871432683,0.0702,86059.0,86058.0,0.09351]
[1765871432890,0.431,86059.0,86058.0,0.09351]
[1765871433187,0.0702,86059.0,86058.0,0.09351]
[1765871433779,0.0712,86059.0,86058.0,0.09351]
[1765871435586,0.0828224,86059.0,86058.0,0.09351]
[1765871435986,0.0812729,86056.0,86055.0,0.00017435]
[1765871440586,0.0812729,86056.0,86055.0,0.07246435]
[1765871440792,0.0812729,86056.0,86055.0,0.00017435]
[1765871444802,0.3724224,86059.0,86044.0,0.02208]
[1765871444803,0.0807343,86045.0,86044.0,0.02208]
[1765871445494,0.0807343,86045.0,86044.0,0.09437]
[1765871446097,0.0807343,86045.0,86044.0,0.10608824]
[1765871446589,0.0807343,86045.0,86044.0,0.10808824]
[1765871446792,0.3608,86049.0,86048.0,0.07229]
[1765871446998,0.01179765,86053.0,86052.0,0.09255]
[1765871448707,0.00017435,86053.0,86052.0,0.09255]
[1765871449402,0.0460025,86059.0,86058.0,0.1041726]
[1765871449608,0.0804225,86059.0,86058.0,0.09255]
[1765871451105,0.0814225,86059.0,86058.0,0.09255]
[1765871456717,0.0814225,86059.0,86058.0,0.02026]
[1765871456922,0.0814225,86059.0,86058.0,0.05705]
[1765871457124,0.0814225,86059.0,86058.0,0.09255]
[1765871461112,0.0797433,86053.0,86052.0,0.09255]
[1765871461420,0.0797443,86045.0,86044.0,0.10608824]
[1765871462618,0.0797443,86045.0,86044.0,0.10808824]
[1765871462819,0.0797443,86045.0,86044.0,0.09637]
[1765871463027,0.4405443,86045.0,86044.0,0.09637]
[1765871463323,0.4405443,86045.0,86044.0,0.09837]
[1765871463527,0.4405443,86045.0,86044.0,0.09518]
[1765871463823,0.0456643,86045.0,86044.0,0.09318]
[1765871464029,0.03404,86045.0,86044.0,0.09518]
[1765871464730,0.06802,86045.0,86044.0,0.09518]
[1765871465023,0.0116243,86046.0,86044.0,0.06115]
[1765871465227,0.0794831,86054.0,86053.0,0.0691]
[1765871466427,0.0116231,86054.0,86053.0,0.0691]
[1765871466630,0.0116231,86054.0,86053.0,0.0711]
[1765871466931,0.0116231,86054.0,86053.0,0.0731]
[1765871467330,0.4402131,86054.0,86053.0,0.0731]
[1765871467631,0.4402131,86054.0,86053.0,0.004]
[1765871468727,0.4402131,86054.0,86053.0,0.002]
[1765871468923,0.4402131,86054.0,86053.0,0.004]
[1765871469319,0.4402131,86054.0,86053.0,0.002]
[1765871472033,0.0791943,86045.0,86044.0,0.09118]
[1765871472220,0.4399943,86045.0,86044.0,0.09118]
[1765871473235,0.4399943,86045.0,86044.0,0.09318]
[1765871474227,0.4399943,86045.0,86044.0,0.002]
[1765871474529,0.4399943,86045.0,86044.0,0.004]
[1765871474730,0.0790649,86041.0,86040.0,0.02026]
[1765871474925,0.0790354,86037.0,86036.0,0.00017435]
[1765871476332,0.0790354,86037.0,86036.0,0.00117435]
[1765871476725,0.0790354,86037.0,86036.0,0.00217435]
[1765871477634,0.0790354,86037.0,86036.0,0.00117435]
[1765871481425,0.0790354,86037.0,86036.0,0.03520435]
[1765871482339,0.0790354,86037.0,86036.0,0.07027435]
[1765871483330,0.0790354,86037.0,86036.0,0.00117435]
[1765871487033,0.06619,86023.0,86022.0,0.09095]
[1765871487229,0.06619,86022.0,86021.0,0.01155033]
[1765871487534,0.07013,86019.0,86016.0,0.02185]
[1765871487836,0.07013,86019.0,86004.0,0.02185]
[1765871488036,0.07013,86019.0,86018.0,0.01405676]
[1765871488833,0.07013,86019.0,86018.0,0.01505676]
[1765871490442,0.07013,86019.0,86018.0,0.08415676]
[1765871490643,0.07013,86019.0,86018.0,0.08515676]
[1765871493336,0.07013,86019.0,86018.0,0.09678476]
[1765871493531,0.3608,86024.0,86020.0,0.07135]
[1765871493736,0.01180115,86027.0,86026.0,0.0829769]
[1765871493940,0.00017435,86027.0,86026.0,0.0829769]
[1765871495248,0.0116261,86033.0,86032.0,0.0829761]
[1765871496448,0.0116261,86033.0,86032.0,0.07135]
[1765871497647,0.0116256,86036.0,86035.0,0.0829755]
[1765871498942,0.0126256,86036.0,86035.0,0.0829755]
[1765871500041,0.0136256,86036.0,86035.0,0.0829755]
[1765871501540,0.002,86036.0,86035.0,0.0829755]
[1765871505244,0.002,86036.0,86035.0,0.17691875]
[1765871505552,0.3608,86047.0,86044.0,0.0829742]
[1765871505553,0.0116244,86045.0,86044.0,0.0829742]
[1765871506751,0.0136244,86045.0,86044.0,0.0829742]
[1765871507251,0.0156244,86045.0,86044.0,0.0829742]
[1765871512154,0.004,86045.0,86044.0,0.4437742]
[1765871512357,0.42816,86064.0,86063.0,0.07135]
[1765871513152,0.0789829,86056.0,86055.0,0.00017435]
[1765871513351,0.4397829,86056.0,86055.0,0.00017435]
[1765871513654,0.0789842,86046.0,86045.0,0.09115]
[1765871514652,0.0789842,86046.0,86040.0,0.0198]
[1765871514653,0.0789849,86041.0,86040.0,0.09115]
[1765871516749,0.0789849,86041.0,86040.0,0.09315]
[1765871517158,0.0789849,86041.0,86040.0,0.004]
[1765871517760,0.0789849,86041.0,86040.0,0.03918]
[1765871519157,0.0789853,86038.0,86037.0,0.00017435]
[1765871519656,0.0789873,86023.0,86022.0,0.09115]
[1765871520856,0.0789873,86023.0,86022.0,0.09415]
[1765871521449,0.0116273,86023.0,86022.0,0.09415]
[1765871522150,0.0116273,86023.0,86022.0,0.09715]
[1765871523661,0.0803573,86023.0,86022.0,0.09715]
[1765871524462,0.0443273,86023.0,86022.0,0.09715]
[1765871524652,0.0116273,86023.0,86022.0,0.09715]
[1765871525162,0.0443273,86023.0,86022.0,0.09715]
[1765871525357,0.0116273,86023.0,86022.0,0.09715]
[1765871526055,0.4411562,86031.0,86030.0,0.06656]
[1765871526558,0.4051262,86031.0,86030.0,0.06656]
[1765871526761,0.3724262,86031.0,86030.0,0.06656]
[1765871527154,0.4051262,86031.0,86030.0,0.06856]
[1765871527663,0.3608,86031.0,86030.0,0.07056]
[1765871527866,0.0116259,86034.0,86033.0,0.06656]
[1765871528162,0.17843117,86040.0,86030.0,0.004]
[1765871528163,0.17843117,86040.0,86034.0,0.02034]
[1765871528354,0.011625,86041.0,86040.0,0.098525]
[1765871528749,0.044325,86041.0,86040.0,0.0869]
[1765871529462,0.080355,86041.0,86040.0,0.0869]
[1765871529665,0.011625,86041.0,86040.0,0.0869]
[1765871529960,0.011625,86041.0,86040.0,0.0879]
[1765871530351,0.3608,86049.0,86045.0,0.06656]
[1765871530551,0.03287435,86046.0,86045.0,0.06656]
[1765871531158,0.00017435,86046.0,86045.0,0.0781843]
[1765871532670,0.00017435,86046.0,86045.0,0.0801843]
[1765871532969,0.00017435,86046.0,86045.0,0.0821843]
[1765871541181,0.06890435,86046.0,86045.0,0.0821843]
[1765871541382,0.06890435,86046.0,86045.0,0.07056]
[1765871545583,0.03287435,86046.0,86045.0,0.07056]
[1765871545786,0.00017435,86046.0,86045.0,0.07056]
[1765871546181,0.17843117,86070.0,86045.0,0.07056]
[1765871546182,0.0116229,86056.0,86055.0,0.0116229]
[1765871546382,0.3724214,86067.0,86056.0,0.06656]
[1765871546586,0.0116217,86065.0,86064.0,0.0985218]
[1765871546791,0.3608,86067.0,86066.0,0.06656]
[1765871547188,0.53923117,86074.0,86064.0,0.0319618]
[1765871547189,0.55085167,86074.0,86073.0,0.06656]
[1765871547495,0.3724205,86074.0,86073.0,0.0781806]
[1765871548093,0.3608,86074.0,86073.0,0.0781806]
[1765871548396,0.00017435,86075.0,86074.0,0.06656]
[1765871548984,0.06890435,86075.0,86074.0,0.06656]
[1765871549387,0.06873,86071.0,86070.0,0.03259]
[1765871549691,0.4411508,86071.0,86070.0,0.03259]
[1765871549894,0.0803508,86071.0,86070.0,0.06656]
[1765871555999,0.0803508,86071.0,86070.0,0.0873]
[1765871556394,4.35e-06,86075.0,86074.0,0.0777204]
[1765871556596,0.00232295,86098.0,86097.0,0.0661]
[1765871556597,0.43128295,86098.0,86097.0,0.0661]
[1765871556901,0.06816,86092.0,86091.0,0.0777181]
[1765871557303,0.00232295,86098.0,86097.0,0.0777173]
[1765871557602,0.07048295,86098.0,86097.0,0.0777173]
[1765871558002,0.03640295,86098.0,86097.0,0.0777173]
[1765871558996,0.07048295,86098.0,86097.0,0.0661]
[1765871559191,0.07048295,86098.0,86094.0,1.5]
[1765871559390,0.06816,86095.0,86094.0,1.5]
[1765871559591,0.00232295,86098.0,86093.0,0.0323578]
[1765871559592,0.0797777,86094.0,86093.0,0.05318]
[1765871559895,0.0797777,86094.0,86093.0,0.08684]
[1765871560095,0.0797777,86094.0,86093.0,1.58684]
[1765871561099,0.0797777,86094.0,86093.0,0.08684]
[1765871561300,0.0797777,86094.0,86093.0,0.08784]
[1765871561801,0.4405777,86094.0,86093.0,0.08784]
[1765871562497,0.06816,86090.0,86089.0,0.00017425]
[1765871562694,0.0797814,86067.0,86066.0,0.0661]
[1765871563495,0.37242,86077.0,86076.0,0.0661]
[1765871563895,0.03408,86080.0,86079.0,0.08684]